fUSD/lending_fUSD_20260614
["ID","MTS","AMOUNT","RATE_DAILY","PERIOD"]
[425021192,1781435447000,-500.0,0.00027671,8]
[425021196,1781435447000,-281.1,0.00027671,8]
[425021198,1781435447000,-500.0,0.00027671,8]
[425021200,1781435447000,-500.0,0.00027671,8]
[425021194,1781435447000,-412.53,0.00027671,8]
[425021204,1781435447000,-489.38,0.00027671,8]
[425021206,1781435447000,-306.3,0.00027671,8]
[425021202,1781435447000,-500.0,0.00027671,8]
[425021208,1781435447000,-455.0,0.00027671,8]
[425021214,1781435447000,-500.0,0.00027671,8]
[425021211,1781435447000,-500.0,0.00027671,8]
[425021213,1781435447000,-408.20166231,0.00027671,8]
[425021209,1781435447000,-500.0,0.00027671,8]
[425021215,1781435447000,-500.0,0.00027671,8]
[425021216,1781435447000,-587.19,0.00027671,8]
[425021217,1781435447000,-500.0,0.00027671,8]
[425021219,1781435447000,-197.82,0.00027671,8]
[425021218,1781435447000,-500.0,0.00027671,8]
[425021220,1781435447000,-345.76,0.00027671,8]
[425021106,1781435447000,-500.0,0.00027671,8]
[425021174,1781435447000,-422.35,0.00027671,8]
[425021179,1781435447000,-195.05,0.00027671,8]
[425021062,1781435447000,-500.0,0.00027671,8]
[425021172,1781435447000,-500.0,0.00027671,8]
[425021112,1781435447000,-274.71,0.00027671,8]
[425021170,1781435447000,-194.06,0.00027671,8]
[425021108,1781435447000,-500.0,0.00027671,8]
[425021116,1781435447000,-392.62,0.00027671,8]
[425021124,1781435447000,-495.14,0.00027671,8]
[425021122,1781435447000,-500.0,0.00027671,8]
[425021126,1781435447000,-800.59,0.00027671,8]
[425021120,1781435447000,-500.0,0.00027671,8]
[425021128,1781435447000,-500.0,0.00027671,8]
[425021136,1781435447000,-588.42,0.00027671,8]
[425021130,1781435447000,-500.0,0.00027671,8]
[425021134,1781435447000,-269.05,0.00027671,8]
[425021132,1781435447000,-500.0,0.00027671,8]
[425021143,1781435447000,-460.98,0.00027671,8]
[425021114,1781435447000,-500.0,0.00027671,8]
[425021138,1781435447000,-638.72,0.00027671,8]
[425021141,1781435447000,-500.0,0.00027671,8]
[425021168,1781435447000,-500.0,0.00027671,8]
[425021164,1781435447000,-500.0,0.00027671,8]
[425021162,1781435447000,-409.03,0.00027671,8]
[425021154,1781435447000,-500.0,0.00027671,8]
[425021151,1781435447000,-500.0,0.00027671,8]
[425021166,1781435447000,-293.99,0.00027671,8]
[425021159,1781435447000,-500.0,0.00027671,8]
[425021149,1781435447000,-190.07,0.00027671,8]
[425021147,1781435447000,-395.56,0.00027671,8]
[425021157,1781435447000,-528.97,0.00027671,8]
[425021160,1781435447000,-226.26,0.00027671,8]
[425021145,1781435447000,-500.0,0.00027671,8]
[425021257,1781435448000,-500.0,0.00027671,8]
[425021260,1781435448000,-500.0,0.00027671,8]
[425021258,1781435448000,-488.49,0.00027671,8]
[425021255,1781435448000,-279.47,0.00027671,8]
[425021254,1781435448000,-500.0,0.00027671,8]
[425021253,1781435448000,-500.0,0.00027671,8]
[425021250,1781435448000,-612.24,0.00027671,8]
[425021252,1781435448000,-500.0,0.00027671,8]
[425021259,1781435448000,-500.0,0.00027671,8]
[425021251,1781435448000,-500.0,0.00027671,8]
[425021256,1781435448000,-500.0,0.00027671,8]
[425021262,1781435448000,-557.13,0.00027671,8]
[425021261,1781435448000,-500.0,0.00027671,8]
[425021267,1781435448000,-525.96,0.00027671,8]
[425021266,1781435448000,-500.0,0.00027671,8]
[425021271,1781435448000,-265.46,0.00027671,8]
[425021263,1781435448000,-500.0,0.00027671,8]
[425021269,1781435448000,-500.0,0.00027671,8]
[425021272,1781435448000,-500.0,0.00027671,8]
[425021265,1781435448000,-500.0,0.00027671,8]
[425021268,1781435448000,-313.1,0.00027671,8]
[425021273,1781435448000,-500.0,0.00027671,8]
[425021275,1781435448000,-377.33,0.00027671,8]
[425021246,1781435448000,-500.0,0.00027671,8]
[425021264,1781435448000,-252.7,0.00027671,8]
[425021248,1781435448000,-429.75,0.00027671,8]
[425021234,1781435448000,-500.0,0.00027671,8]
[425021245,1781435448000,-500.0,0.00027671,8]
[425021222,1781435448000,-500.0,0.00027671,8]
[425021221,1781435448000,-256.91083108,0.00027671,8]
[425021227,1781435448000,-500.0,0.00027671,8]
[425021223,1781435448000,-500.0,0.00027671,2]
[425021224,1781435448000,-623.95,0.00027671,8]
[425021226,1781435448000,-564.22,0.00027671,8]
[425021225,1781435448000,-245.76,0.00027671,8]
[425021229,1781435448000,-500.0,0.00027671,8]
[425021230,1781435448000,-315.14,0.00027671,8]
[425021232,1781435448000,-545.91,0.00027671,8]
[425021228,1781435448000,-500.0,0.00027671,8]
[425021231,1781435448000,-500.0,0.00027671,8]
[425021278,1781435448000,-584.4,0.00027671,8]
[425021233,1781435448000,-500.0,0.00027671,8]
[425021236,1781435448000,-500.0,0.00027671,8]
[425021237,1781435448000,-500.0,0.00027671,8]
[425021235,1781435448000,-500.0,0.00027671,8]
[425021239,1781435448000,-500.0,0.00027671,8]
[425021249,1781435448000,-503.72,0.00027671,8]
[425021238,1781435448000,-500.0,0.00027671,8]
[425021247,1781435448000,-306.44,0.00027671,8]
[425021240,1781435448000,-581.98,0.00027671,8]
[425021242,1781435448000,-500.0,0.00027671,8]
[425021241,1781435448000,-500.0,0.00027671,8]
[425021243,1781435448000,-500.0,0.00027671,8]
[425021244,1781435448000,-633.72,0.00027671,8]
[425021276,1781435448000,-500.0,0.00027671,8]
[425021270,1781435448000,-500.0,0.00027671,8]
[425021280,1781435448000,-500.0,0.00027671,8]
[425021306,1781435448000,-500.0,0.00027671,8]
[425021308,1781435448000,-500.0,0.00027671,8]
[425021309,1781435448000,-500.0,0.00027671,8]
[425021314,1781435448000,-500.0,0.00027671,8]
[425021310,1781435448000,-500.0,0.00027671,8]
[425021313,1781435448000,-297.81,0.00027671,8]
[425021316,1781435448000,-387.59,0.00027671,8]
[425021311,1781435448000,-169.87,0.00027671,8]
[425021315,1781435448000,-500.0,0.00027671,8]
[425021312,1781435448000,-241.68,0.00027671,8]
[425021329,1781435448000,-500.0,0.00027671,8]
[425021319,1781435448000,-314.65,0.00027671,8]
[425021307,1781435448000,-500.0,0.00027671,8]
[425021320,1781435448000,-500.0,0.00027671,8]
[425021327,1781435448000,-500.0,0.00027671,8]
[425021325,1781435448000,-567.55,0.00027671,8]
[425021326,1781435448000,-500.0,0.00027671,8]
[425021328,1781435448000,-500.0,0.00027671,8]
[425021324,1781435448000,-500.0,0.00027671,8]
[425021321,1781435448000,-560.26,0.00027671,8]
[425021322,1781435448000,-500.0,0.00027671,8]
[425021323,1781435448000,-500.0,0.00027671,8]
[425021331,1781435448000,-500.0,0.00027671,8]
[425021330,1781435448000,-249.52,0.00027671,8]
[425021277,1781435448000,-500.0,0.00027671,8]
[425021332,1781435448000,-500.0,0.00027671,8]
[425021318,1781435448000,-340.44,0.00027671,8]
[425021317,1781435448000,-237.24,0.00027671,8]
[425021333,1781435448000,-500.0,0.00027671,8]
[425021302,1781435448000,-500.0,0.00027671,8]
[425021303,1781435448000,-300.3,0.00027671,8]
[425021279,1781435448000,-180.58,0.00027671,8]
[425021284,1781435448000,-257.3,0.00027671,8]
[425021274,1781435448000,-500.0,0.00027671,8]
[425021281,1781435448000,-500.0,0.00027671,8]
[425021283,1781435448000,-461.87,0.00027671,8]
[425021285,1781435448000,-500.0,0.00027671,8]
[425021294,1781435448000,-277.82,0.00027671,8]
[425021286,1781435448000,-500.0,0.00027671,8]
[425021287,1781435448000,-354.75,0.00027671,8]
[425021293,1781435448000,-223.52,0.00027671,8]
[425021289,1781435448000,-500.0,0.00027671,8]
[425021282,1781435448000,-500.0,0.00027671,8]
[425021288,1781435448000,-500.0,0.00027671,8]
[425021292,1781435448000,-158.32,0.00027671,8]
[425021304,1781435448000,-500.0,0.00027671,8]
[425021300,1781435448000,-324.8,0.00027671,8]
[425021301,1781435448000,-500.0,0.00027671,8]
[425021305,1781435448000,-500.0,0.00027671,8]
[425021298,1781435448000,-500.0,0.00027671,8]
[425021299,1781435448000,-426.31,0.00027671,8]
[425021296,1781435448000,-254.48,0.00027671,8]
[425021295,1781435448000,-500.0,0.00027671,8]
[425021291,1781435448000,-334.16,0.00027671,8]
[425021290,1781435448000,-531.13,0.00027671,8]
[425021297,1781435448000,-315.3,0.00027671,8]
[425021364,1781435449000,-219.38,0.00027671,8]
[425021365,1781435449000,-158.83,0.00027671,8]
[425021371,1781435449000,-500.0,0.00027671,8]
[425021370,1781435449000,-500.0,0.00027671,8]
[425021366,1781435449000,-500.0,0.00027671,8]
[425021367,1781435449000,-500.0,0.00027671,8]
[425021368,1781435449000,-153.77837307,0.00027671,8]
[425021362,1781435449000,-639.19,0.00027671,8]
[425021369,1781435449000,-500.0,0.00027671,8]
[425021373,1781435449000,-484.25,0.00027671,8]
[425021374,1781435449000,-500.0,0.00027671,8]
[425021380,1781435449000,-500.0,0.00027671,8]
[425021376,1781435449000,-287.41,0.00027671,8]
[425021372,1781435449000,-500.0,0.00027671,8]
[425021383,1781435449000,-500.0,0.00027671,8]
[425021378,1781435449000,-557.83,0.00027671,8]
[425021379,1781435449000,-500.0,0.00027671,8]
[425021377,1781435449000,-389.97,0.00027671,8]
[425021382,1781435449000,-500.0,0.00027671,8]
[425021381,1781435449000,-366.43,0.00027671,8]
[425021386,1781435449000,-522.94,0.00027671,8]
[425021389,1781435449000,-500.0,0.00027671,8]
[425021363,1781435449000,-473.6,0.00027671,8]
[425021392,1781435449000,-559.93,0.00027671,8]
[425021375,1781435449000,-500.0,0.00027671,8]
[425021361,1781435449000,-577.21,0.00027671,8]
[425021345,1781435449000,-500.0,0.00027671,8]
[425021353,1781435449000,-382.04,0.00027671,8]
[425021387,1781435449000,-503.32,0.00027671,8]
[425021335,1781435449000,-500.0,0.00027671,8]
[425021340,1781435449000,-500.0,0.00027671,8]
[425021338,1781435449000,-510.76,0.00027671,8]
[425021337,1781435449000,-500.0,0.00027671,8]
[425021334,1781435449000,-500.0,0.00027671,8]
[425021336,1781435449000,-500.0,0.00027671,8]
[425021339,1781435449000,-500.0,0.00027671,8]
[425021341,1781435449000,-589.95,0.00027671,8]
[425021343,1781435449000,-556.98,0.00027671,8]
[425021344,1781435449000,-210.8,0.00027671,8]
[425021350,1781435449000,-160.0,0.00027671,8]
[425021347,1781435449000,-500.0,0.00027671,8]
[425021346,1781435449000,-197.1,0.00027671,8]
[425021348,1781435449000,-500.0,0.00027671,8]
[425021342,1781435449000,-296.66,0.00027671,8]
[425021349,1781435449000,-573.91,0.00027671,8]
[425021352,1781435449000,-274.42,0.00027671,8]
[425021354,1781435449000,-372.27,0.00027671,8]
[425021351,1781435449000,-324.3,0.00027671,8]
[425021357,1781435449000,-591.59,0.00027671,8]
[425021356,1781435449000,-492.53,0.00027671,8]
[425021360,1781435449000,-500.0,0.00027671,8]
[425021358,1781435449000,-500.0,0.00027671,8]
[425021359,1781435449000,-545.1,0.00027671,8]
[425021355,1781435449000,-311.39,0.00027671,8]
[425021391,1781435449000,-311.39,0.00027671,8]
[425021433,1781435449000,-500.0,0.00027671,8]
[425021384,1781435449000,-216.44,0.00027671,8]
[425021421,1781435449000,-500.0,0.00027671,8]
[425021420,1781435449000,-267.47,0.00027671,8]
[425021417,1781435449000,-500.0,0.00027671,8]
[425021419,1781435449000,-343.81,0.00027671,8]
[425021427,1781435449000,-500.0,0.00027671,8]
[425021422,1781435449000,-257.43,0.00027671,8]
[425021423,1781435449000,-279.21,0.00027671,8]
[425021424,1781435449000,-419.22,0.00027671,8]
[425021425,1781435449000,-500.0,0.00027671,8]
[425021426,1781435449000,-500.0,0.00027671,8]
[425021431,1781435449000,-163.4,0.00027671,8]
[425021428,1781435449000,-500.0,0.00027671,8]
[425021437,1781435449000,-171.22,0.00027671,8]
[425021435,1781435449000,-500.0,0.00027671,8]
[425021434,1781435449000,-359.8,0.00027671,8]
[425021440,1781435449000,-516.72216188,0.00027671,8]
[425021439,1781435449000,-558.56,0.00027671,8]
[425021430,1781435449000,-500.0,0.00027671,8]
[425021436,1781435449000,-500.0,0.00027671,8]
[425021441,1781435449000,-500.0,0.00027671,8]
[425021443,1781435449000,-478.97,0.00027671,7]
[425021444,1781435449000,-426.35,0.00027671,8]
[425021442,1781435449000,-500.0,0.00027671,8]
[425021393,1781435449000,-500.0,0.00027671,8]
[425021438,1781435449000,-500.0,0.00027671,8]
[425021429,1781435449000,-500.0,0.00027671,8]
[425021432,1781435449000,-500.0,0.00027671,8]
[425021415,1781435449000,-312.74,0.00027671,8]
[425021394,1781435449000,-181.29,0.00027671,8]
[425021418,1781435449000,-500.0,0.00027671,8]
[425021385,1781435449000,-500.0,0.00027671,8]
[425021388,1781435449000,-500.0,0.00027671,8]
[425021395,1781435449000,-500.0,0.00027671,8]
[425021396,1781435449000,-274.14,0.00027671,8]
[425021397,1781435449000,-500.0,0.00027671,8]
[425021398,1781435449000,-500.0,0.00027671,8]
[425021399,1781435449000,-520.63,0.00027671,8]
[425021400,1781435449000,-500.0,0.00027671,8]
[425021402,1781435449000,-500.0,0.00027671,8]
[425021403,1781435449000,-500.0,0.00027671,8]
[425021401,1781435449000,-245.59,0.00027671,8]
[425021390,1781435449000,-500.0,0.00027671,8]
[425021413,1781435449000,-500.0,0.00027671,8]
[425021404,1781435449000,-202.57,0.00027671,8]
[425021416,1781435449000,-500.0,0.00027671,8]
[425021414,1781435449000,-500.0,0.00027671,8]
[425021411,1781435449000,-500.0,0.00027671,8]
[425021410,1781435449000,-496.43,0.00027671,8]
[425021412,1781435449000,-609.54,0.00027671,8]
[425021408,1781435449000,-233.30181134,0.00027671,8]
[425021407,1781435449000,-500.0,0.00027671,8]
[425021406,1781435449000,-500.0,0.00027671,8]
[425021405,1781435449000,-520.0,0.00027671,8]
[425021409,1781435449000,-500.0,0.00027671,8]
[425021481,1781435450000,-492.72,0.00027671,8]
[425021480,1781435450000,-412.82,0.00027671,8]
[425021483,1781435450000,-500.0,0.00027671,8]
[425021485,1781435450000,-500.0,0.00027671,8]
[425021482,1781435450000,-500.0,0.00027671,8]
[425021496,1781435450000,-565.92,0.00027671,8]
[425021473,1781435450000,-500.0,0.00027671,8]
[425021472,1781435450000,-507.92,0.00027671,8]
[425021471,1781435450000,-500.0,0.00027671,8]
[425021484,1781435450000,-503.12,0.00027671,8]
[425021470,1781435450000,-525.91,0.00027671,8]
[425021479,1781435450000,-164.77,0.00027671,8]
[425021486,1781435450000,-277.97,0.00027671,8]
[425021502,1781435450000,-567.18,0.00027671,8]
[425021490,1781435450000,-523.56,0.00027671,8]
[425021488,1781435450000,-454.15,0.00027671,8]
[425021487,1781435450000,-600.07,0.00027671,8]
[425021492,1781435450000,-500.0,0.00027671,8]
[425021491,1781435450000,-500.0,0.00027671,8]
[425021494,1781435450000,-374.3,0.00027671,8]
[425021495,1781435450000,-313.15,0.00027671,8]
[425021493,1781435450000,-500.0,0.00027671,8]
[425021499,1781435450000,-287.09,0.00027671,8]
[425021497,1781435450000,-500.0,0.00027671,8]
[425021476,1781435450000,-178.56,0.00027671,8]
[425021489,1781435450000,-500.0,0.00027671,8]
[425021468,1781435450000,-407.8,0.00027671,8]
[425021448,1781435450000,-477.24,0.00027671,8]
[425021467,1781435450000,-384.54746791,0.00027671,8]
[425021500,1781435450000,-500.0,0.00027671,8]
[425021451,1781435450000,-275.9,0.00027671,8]
[425021453,1781435450000,-500.0,0.00027671,8]
[425021450,1781435450000,-508.86,0.00027671,8]
[425021452,1781435450000,-500.0,0.00027671,8]
[425021445,1781435450000,-500.0,0.00027671,8]
[425021449,1781435450000,-500.0,0.00027671,8]
[425021447,1781435450000,-500.0,0.00027671,8]
[425021446,1781435450000,-205.42,0.00027671,8]
[425021454,1781435450000,-454.76,0.00027671,8]
[425021456,1781435450000,-500.0,0.00027671,8]
[425021455,1781435450000,-500.0,0.00027671,8]
[425021478,1781435450000,-461.38,0.00027671,8]
[425021457,1781435450000,-500.0,0.00027671,8]
[425021460,1781435450000,-500.0,0.00027671,8]
[425021459,1781435450000,-500.0,0.00027671,8]
[425021458,1781435450000,-500.0,0.00027671,8]
[425021466,1781435450000,-192.5,0.00027671,8]
[425021465,1781435450000,-441.91089698,0.00027671,8]
[425021461,1781435450000,-386.74,0.00027671,8]
[425021464,1781435450000,-500.0,0.00027671,8]
[425021462,1781435450000,-500.0,0.00027671,8]
[425021474,1781435450000,-500.0,0.00027671,8]
[425021477,1781435450000,-500.0,0.00027671,8]
[425021475,1781435450000,-463.02,0.00027671,8]
[425021469,1781435450000,-500.0,0.00027671,8]
[425021463,1781435450000,-500.0,0.00027671,8]
[425021501,1781435450000,-154.37,0.00027671,8]
[425021503,1781435450000,-500.0,0.00027671,8]
[425021512,1781435450000,-500.0,0.00027671,8]
[425021530,1781435450000,-281.07,0.00027671,8]
[425021531,1781435450000,-580.75,0.00027671,8]
[425021532,1781435450000,-500.0,0.00027671,8]
[425021538,1781435450000,-268.67750311,0.00027671,8]
[425021548,1781435450000,-422.3,0.00027671,8]
[425021537,1781435450000,-601.59755206,0.00027671,8]
[425021547,1781435450000,-500.0,0.00027671,8]
[425021546,1781435450000,-309.36,0.00027671,8]
[425021539,1781435450000,-500.0,0.00027671,8]
[425021540,1781435450000,-500.0,0.00027671,8]
[425021543,1781435450000,-631.02,0.00027671,8]
[425021544,1781435450000,-296.79,0.00027671,8]
[425021529,1781435450000,-500.0,0.00027671,8]
[425021541,1781435450000,-500.0,0.00027671,8]
[425021545,1781435450000,-500.0,0.00027671,8]
[425021549,1781435450000,-500.0,0.00027671,8]
[425021552,1781435450000,-500.0,0.00027671,8]
[425021559,1781435450000,-345.71,0.00027671,8]
[425021554,1781435450000,-500.0,0.00027671,8]
[425021558,1781435450000,-500.0,0.00027671,8]
[425021551,1781435450000,-500.0,0.00027671,8]
[425021555,1781435450000,-500.0,0.00027671,8]
[425021556,1781435450000,-500.0,0.00027671,8]
[425021557,1781435450000,-500.0,0.00027671,8]
[425021553,1781435450000,-500.0,0.00027671,8]
[425021498,1781435450000,-500.0,0.00027671,8]
[425021542,1781435450000,-500.0,0.00027671,8]
[425021534,1781435450000,-167.3,0.00027671,8]
[425021550,1781435450000,-500.0,0.00027671,8]
[425021536,1781435450000,-576.43,0.00027671,8]
[425021535,1781435450000,-570.85,0.00027671,8]
[425021560,1781435450000,-222.31,0.00027671,8]
[425021506,1781435450000,-277.97,0.00027671,8]
[425021514,1781435450000,-284.08,0.00027671,8]
[425021508,1781435450000,-500.0,0.00027671,8]
[425021513,1781435450000,-500.0,0.00027671,8]
[425021509,1781435450000,-534.44,0.00027671,8]
[425021505,1781435450000,-500.0,0.00027671,8]
[425021510,1781435450000,-301.47,0.00027671,8]
[425021504,1781435450000,-179.47,0.00027671,8]
[425021511,1781435450000,-346.65,0.00027671,8]
[425021515,1781435450000,-500.0,0.00027671,8]
[425021517,1781435450000,-235.99,0.00027671,8]
[425021507,1781435450000,-500.0,0.00027671,8]
[425021516,1781435450000,-500.0,0.00027671,8]
[425021533,1781435450000,-500.0,0.00027671,8]
[425021524,1781435450000,-500.0,0.00027671,8]
[425021527,1781435450000,-500.0,0.00027671,8]
[425021528,1781435450000,-350.13,0.00027671,8]
[425021522,1781435450000,-500.0,0.00027671,8]
[425021518,1781435450000,-331.68,0.00027671,8]
[425021525,1781435450000,-287.18,0.00027671,8]
[425021523,1781435450000,-500.0,0.00027671,8]
[425021520,1781435450000,-413.06,0.00027671,8]
[425021521,1781435450000,-235.69,0.00027671,8]
[425021519,1781435450000,-487.93,0.00027671,8]
[425021526,1781435450000,-500.0,0.00027671,8]
[425021586,1781435451000,-412.53,0.00027671,8]
[425021588,1781435451000,-500.0,0.00027671,8]
[425021581,1781435451000,-395.56,0.00027671,8]
[425021585,1781435451000,-599.49,0.00027671,8]
[425021582,1781435451000,-274.71,0.00027671,8]
[425021584,1781435451000,-500.0,0.00027671,8]
[425021587,1781435451000,-293.99,0.00027671,8]
[425021590,1781435451000,-197.82,0.00027671,8]
[425021593,1781435451000,-623.95,0.00027671,8]
[425021589,1781435451000,-500.0,0.00027671,8]
[425021596,1781435451000,-584.4,0.00027671,8]
[425021594,1781435451000,-500.0,0.00027671,8]
[425021592,1781435451000,-500.0,0.00027671,8]
[425021595,1781435451000,-500.0,0.00027671,8]
[425021597,1781435451000,-241.68,0.00027671,8]
[425021583,1781435451000,-306.3,0.00027671,8]
[425021599,1781435451000,-1077.81,0.00027671,8]
[425021591,1781435451000,-500.0,0.00027671,8]
[425021579,1781435451000,-500.0,0.00027671,8]
[425021570,1781435451000,-588.42,0.00027671,8]
[425021577,1781435451000,-500.0,0.00027671,8]
[425021609,1781435451000,-572.21,0.00027671,8]
[425021561,1781435451000,-500.0,0.00027671,8]
[425021563,1781435451000,-315.38,0.00027671,8]
[425021569,1781435451000,-207.44,0.00027671,8]
[425021568,1781435451000,-500.0,0.00027671,8]
[425021564,1781435451000,-500.0,0.00027671,8]
[425021566,1781435451000,-500.0,0.00027671,8]
[425021562,1781435451000,-500.0,0.00027671,8]
[425021565,1781435451000,-500.0,0.00027671,8]
[425021567,1781435451000,-396.92,0.00027671,8]
[425021571,1781435451000,-549.64,0.00027671,8]
[425021573,1781435451000,-500.0,0.00027671,8]
[425021572,1781435451000,-500.0,0.00027671,8]
[425021574,1781435451000,-500.0,0.00027671,8]
[425021575,1781435451000,-226.26,0.00027671,8]
[425021576,1781435451000,-500.0,0.00027671,8]
[425021578,1781435451000,-500.0,0.00027671,8]
[425021580,1781435451000,-500.0,0.00027671,8]
[425021598,1781435451000,-500.0,0.00027671,8]
[425021601,1781435451000,-500.0,0.00027671,8]
[425021639,1781435451000,-409.03,0.00027671,8]
[425021627,1781435451000,-500.0,0.00027671,8]
[425021624,1781435451000,-500.0,0.00027671,8]
[425021625,1781435451000,-269.05,0.00027671,8]
[425021629,1781435451000,-194.06,0.00027671,8]
[425021623,1781435451000,-306.44,0.00027671,8]
[425021628,1781435451000,-500.0,0.00027671,8]
[425021631,1781435451000,-254.48,0.00027671,8]
[425021632,1781435451000,-500.0,0.00027671,8]
[425021634,1781435451000,-500.0,0.00027671,8]
[425021633,1781435451000,-387.59,0.00027671,8]
[425021638,1781435451000,-422.3,0.00027671,8]
[425021637,1781435451000,-500.0,0.00027671,8]
[425021636,1781435451000,-296.79,0.00027671,8]
[425021640,1781435451000,-500.0,0.00027671,8]
[425021635,1781435451000,-500.0,0.00027671,8]
[425021600,1781435451000,-500.0,0.00027671,8]
[425021641,1781435451000,-500.0,0.00027671,8]
[425021622,1781435451000,-500.0,0.00027671,8]
[425021630,1781435451000,-488.49,0.00027671,8]
[425021626,1781435451000,-500.0,0.00027671,8]
[425021621,1781435451000,-500.0,0.00027671,8]
[425021602,1781435451000,-470.25,0.00027671,8]
[425021603,1781435451000,-500.0,0.00027671,8]
[425021606,1781435451000,-500.0,0.00027671,2]
[425021607,1781435451000,-284.59,0.00027671,8]
[425021620,1781435451000,-500.0,0.00027671,8]
[425021604,1781435451000,-601.59,0.00027671,8]
[425021605,1781435451000,-500.0,0.00027671,8]
[425021610,1781435451000,-408.38,0.00027671,8]
[425021614,1781435451000,-235.99,0.00027671,8]
[425021608,1781435451000,-500.0,0.00027671,8]
[425021619,1781435451000,-500.0,0.00027671,8]
[425021612,1781435451000,-500.0,0.00027671,8]
[425021615,1781435451000,-500.0,0.00027671,8]
[425021616,1781435451000,-500.0,0.00027671,8]
[425021617,1781435451000,-500.0,0.00027671,8]
[425021618,1781435451000,-500.0,0.00027671,8]
[425021613,1781435451000,-500.0,0.00027671,8]
[425021611,1781435451000,-500.0,0.00027671,8]
[425021683,1781435452000,-205.42,0.00027671,8]
[425021674,1781435452000,-500.0,0.00027671,8]
[425021684,1781435452000,-507.08494964,0.00027671,8]
[425021679,1781435452000,-545.1,0.00027671,8]
[425021673,1781435452000,-216.44,0.00027671,8]
[425021675,1781435452000,-534.44,0.00027671,8]
[425021676,1781435452000,-237.24,0.00027671,8]
[425021670,1781435452000,-500.0,0.00027671,8]
[425021681,1781435452000,-267.47,0.00027671,8]
[425021668,1781435452000,-500.0,0.00027671,8]
[425021677,1781435452000,-301.47,0.00027671,8]
[425021680,1781435452000,-343.81,0.00027671,8]
[425021693,1781435452000,-500.0,0.00027671,8]
[425021682,1781435452000,-500.0,0.00027671,8]
[425021696,1781435452000,-151.0,0.00027671,7]
[425021686,1781435452000,-500.0,0.00027671,8]
[425021685,1781435452000,-500.0,0.00027671,8]
[425021688,1781435452000,-500.0,0.00027671,8]
[425021694,1781435452000,-1000.0,0.00027671,8]
[425021692,1781435452000,-163.0,0.00027671,10]
[425021687,1781435452000,-500.0,0.00027671,8]
[425021689,1781435452000,-454.76,0.00027671,8]
[425021690,1781435452000,-386.74,0.00027671,8]
[425021691,1781435452000,-500.0,0.00027671,8]
[425021664,1781435452000,-500.0,0.00027671,8]
[425021678,1781435452000,-500.0,0.00027671,8]